bitfinex/quotes_ETHUSD_20240702
["timestamp","ask_amount","ask_price","bid_price","bid_amount"]
[1719906179265,0.50292079,3443.3,3442.7,3.73169]
[1719906179464,2.90411,3443.4,3442.7,4.395345]
[1719906179666,0.50292059,3443.3,3442.7,4.395345]
[1719906179889,2.90411,3443.4,3442.7,4.395345]
[1719906180088,0.50292056,3443.3,3442.7,4.395345]
[1719906180298,2.90411,3443.4,3442.7,4.395345]
[1719906180491,2.90436,3443.1,3442.5,2.90486]
[1719906180664,2.90436,3443.1,3442.6,0.827]
[1719906181386,7.3791761,3443.5,3442.6,0.827]
[1719906181387,2.90444,3443.0,3442.6,0.827]
[1719906181592,2.90444,3443.0,3442.3,5.2816]
[1719906181887,2.90444,3443.0,3442.5,0.827]
[1719906182454,2.90444,3443.0,3442.3,6.100277]
[1719906182455,2.90444,3443.0,3442.6,0.07054584]
[1719906182687,2.90444,3443.0,3442.3,6.100277]
[1719906182889,2.90444,3443.0,3442.5,0.827]
[1719906183091,2.90454,3442.9,3442.1,2.90517]
[1719906183275,2.90454,3442.9,3442.3,0.827]
[1719906183861,2.90454,3442.9,3442.4,0.07054584]
[1719906184285,2.90461,3442.8,3442.4,0.07054584]
[1719906184697,2.90461,3442.8,3442.4,0.827]
[1719906184893,2.90474,3442.7,3442.5,0.07054584]
[1719906185095,2.90474,3442.7,3441.9,2.90534]
[1719906185096,2.90474,3442.7,3442.2,0.827]
[1719906185293,2.90474,3442.7,3442.3,0.07054584]
[1719906185498,0.50299505,3442.6,3442.2,0.827]
[1719906185707,2.90474,3442.7,3442.3,0.07059246]
[1719906185888,0.50299511,3442.6,3442.2,0.827]
[1719906186087,2.90474,3442.7,3442.3,0.07059246]
[1719906186318,2.90474,3442.7,3441.9,2.90534]
[1719906186512,2.90474,3442.7,3442.2,0.827]
[1719906187050,2.90474,3442.7,3442.3,0.07059246]
[1719906187322,0.50299633,3442.6,3442.2,0.827]
[1719906187497,0.50299633,3442.6,3442.3,0.07059246]
[1719906187698,0.50299633,3442.6,3442.2,0.827]
[1719906187901,0.50299633,3442.6,3442.3,0.07059246]
[1719906188118,0.50299633,3442.6,3442.2,0.827]
[1719906188325,0.50299633,3442.6,3442.3,0.07059246]
[1719906188523,3.40778633,3442.6,3441.8,8.34739]
[1719906188721,5.39969,3442.6,3442.2,0.827]
[1719906189092,5.39969,3442.6,3442.3,0.07059246]
[1719906189292,5.39969,3442.6,3442.2,0.827]
[1719906189493,5.39969,3442.6,3442.3,0.07059246]
[1719906189799,5.39969,3442.6,3442.2,0.827]
[1719906190000,5.39969,3442.6,3442.4,0.07059246]
[1719906190201,5.39969,3442.6,3442.2,0.827]
[1719906190403,5.39969,3442.6,3442.5,0.07059246]
[1719906190620,5.39969,3442.6,3442.2,0.827]
[1719906190829,5.39969,3442.6,3442.5,0.07059246]
[1719906191303,5.39969,3442.6,3442.2,0.827]
[1719906191626,2.90486,3442.5,3442.3,0.07059246]
[1719906191996,2.90486,3442.5,3442.2,0.827]
[1719906192525,2.90505,3442.3,3441.9,0.827]
[1719906193292,2.90505,3442.3,3441.9,0.797]
[1719906193699,2.90505,3442.3,3442.1,0.827]
[1719906196432,2.4949,3442.6,3441.0,2.90612]
[1719906196433,2.90547,3441.8,3441.0,2.90612]
[1719906196823,2.90547,3441.8,3441.3,0.827]
[1719906197228,2.90547,3441.8,3441.4,0.06621647]
[1719906199214,2.90554,3441.7,3441.4,0.06621647]
[1719906200534,2.90562,3441.6,3441.4,0.06621647]
[1719906200835,2.90562,3441.6,3441.2,0.827]
[1719906201037,2.90547,3441.8,3441.2,0.827]
[1719906201038,2.90571,3441.5,3441.2,0.827]
[1719906203634,2.9058,3441.4,3440.9,3.0]
[1719906203848,5.31081,3441.5,3441.0,0.827]
[1719906203849,2.90589,3441.3,3441.0,0.827]
[1719906206030,2.90589,3441.3,3441.1,0.827]
[1719906208616,5.31081,3441.5,3441.1,0.827]
[1719906208817,2.90579,3441.4,3441.1,0.827]
[1719906211025,2.90571,3441.5,3441.1,0.827]
[1719906211230,2.90556,3441.7,3441.3,0.827]
[1719906211568,2.90556,3441.7,3441.5,0.827]
[1719906212063,2.90556,3441.7,3441.6,0.06681842]
[1719906212362,3.40869711,3441.7,3441.6,0.06681842]
[1719906213831,3.40869711,3441.7,3441.5,0.827]
[1719906214034,2.90556,3441.7,3441.6,0.06681842]
[1719906214250,3.40869166,3441.7,3441.6,0.06681842]
[1719906214586,0.50313166,3441.7,3441.6,0.06681842]
[1719906215375,0.50312596,3441.7,3441.6,0.06681842]
[1719906215555,7.3791761,3441.9,3441.6,0.06681842]
[1719906215742,7.3791761,3441.9,3441.8,0.827]
[1719906215942,0.50307809,3441.9,3441.6,0.827]
[1719906216148,2.90511,3442.2,3441.7,0.06681842]
[1719906216469,0.50307945,3442.1,3441.7,0.06681842]
[1719906216647,0.50307945,3442.0,3441.7,0.06681842]
[1719906216847,0.50307945,3442.1,3441.7,0.06681842]
[1719906218667,0.50307014,3442.0,3441.7,0.06681842]
[1719906218862,0.50307014,3441.9,3441.8,0.827]
[1719906219064,0.50307173,3441.9,3441.8,0.827]
[1719906219262,2.90511,3442.2,3441.8,0.827]
[1719906219453,0.50306472,3442.1,3441.8,0.89381842]
[1719906219671,7.3791761,3442.3,3441.8,0.89381842]
[1719906219846,0.5030381,3442.2,3442.0,0.827]
[1719906220046,0.5030381,3442.1,3442.0,0.827]
[1719906220242,0.5030381,3442.2,3442.0,0.827]
[1719906221342,0.5030381,3442.4,3442.0,0.827]
[1719906221541,0.5030381,3442.3,3442.0,0.827]
[1719906221965,0.50302085,3442.2,3442.0,0.827]
[1719906222183,2.90491,3442.5,3442.0,0.827]
[1719906222372,0.50302193,3442.4,3442.0,0.827]
[1719906222574,0.50302193,3442.3,3442.2,0.827]
[1719906222802,7.3791761,3442.6,3442.2,0.827]
[1719906222803,0.50302193,3442.5,3442.2,0.827]
[1719906222998,0.50302193,3442.4,3442.2,0.827]
[1719906223166,7.3791761,3442.6,3442.3,0.827]
[1719906223368,0.50298768,3442.5,3442.2,0.29632696]
[1719906223668,5.35817,3442.9,3442.4,0.827]
[1719906223869,0.50297743,3442.8,3442.4,0.827]
[1719906224098,0.50297743,3442.7,3442.4,0.827]
[1719906224267,0.50297743,3442.6,3442.4,0.827]
[1719906224605,0.50297743,3442.5,3442.4,0.827]
[1719906224760,0.50297743,3442.7,3442.4,0.827]
[1719906225166,2.90461,3442.8,3442.4,0.827]
[1719906225167,0.50298977,3442.6,3442.4,0.827]
[1719906225488,0.50298977,3442.5,3442.4,0.827]
[1719906225668,0.50298977,3442.7,3442.4,0.827]
[1719906227170,0.50298977,3442.7,3442.5,0.06643053]
[1719906228402,2.90461,3442.8,3442.5,0.06643053]
[1719906228598,0.50298972,3442.6,3442.5,0.06643053]
[1719906228785,0.50298972,3442.7,3442.5,0.06643053]
[1719906228988,0.50298972,3442.6,3442.5,0.06643053]
[1719906229195,0.50298972,3442.7,3442.5,0.06643053]
[1719906230987,0.50298972,3442.8,3442.5,0.06643053]
[1719906231878,0.50298557,3442.7,3442.5,0.06643053]
[1719906232112,5.35813,3442.9,3442.5,0.06643053]
[1719906232284,0.50298495,3442.8,3442.5,0.06643053]
[1719906232486,0.50298495,3442.7,3442.5,0.06643053]
[1719906232691,5.35813,3442.9,3442.5,0.06643053]
[1719906232890,0.50298476,3442.8,3442.5,0.06643053]
[1719906233090,0.50298476,3442.7,3442.5,0.06643053]
[1719906233312,5.35813,3442.9,3442.5,0.06643053]
[1719906233511,0.50298782,3442.8,3442.5,0.06643053]
[1719906233704,0.50298782,3442.7,3442.4,0.827]
[1719906234019,5.35813,3442.9,3442.4,0.827]
[1719906234218,0.50297791,3442.8,3442.5,0.066263]
[1719906234519,5.35813,3442.9,3442.4,0.827]
[1719906234676,0.50296715,3442.8,3442.6,0.066263]
[1719906234884,5.35813,3442.9,3442.4,0.827]
[1719906235316,0.50296911,3442.8,3442.4,0.827]
[1719906235517,2.90445,3443.0,3442.4,0.827]
[1719906235681,2.90445,3443.0,3442.6,0.827]
[1719906235682,0.50296165,3442.9,3442.6,0.827]
[1719906235886,0.50296165,3442.8,3442.6,0.827]
[1719906236081,0.50296165,3442.7,3442.6,0.827]
[1719906236613,0.50296165,3442.9,3442.6,0.827]
[1719906236921,0.50296165,3442.8,3442.6,0.827]
[1719906237216,0.50296165,3442.7,3442.6,0.827]
[1719906237412,0.50296165,3442.9,3442.6,0.827]
[1719906237619,0.50296165,3442.8,3442.6,0.827]
[1719906237911,0.50296165,3442.7,3442.6,0.827]
[1719906238415,0.50297146,3442.7,3442.6,0.827]
[1719906239106,2.90445,3443.0,3442.6,0.827]
[1719906239315,0.50295555,3442.9,3442.6,0.827]
[1719906239503,0.50295555,3442.8,3442.6,0.827]
[1719906239698,0.50295555,3443.1,3442.6,0.827]
[1719906239917,0.50295555,3443.0,3442.6,0.827]
[1719906240119,0.50295555,3442.9,3442.6,0.827]
[1719906240298,0.50295555,3442.8,3442.6,0.827]
[1719906240602,5.24817,3443.2,3442.6,0.827]
[1719906240801,0.50294043,3443.1,3442.6,0.827]
[1719906241328,0.50294043,3443.0,3442.6,0.827]
[1719906241510,5.24817,3443.2,3442.6,0.827]
[1719906241511,0.50294043,3443.1,3442.6,0.827]
[1719906241704,0.50294043,3443.0,3442.6,0.827]
[1719906241904,0.50294043,3443.1,3442.6,0.827]
[1719906242212,0.50294043,3443.1,3442.7,0.066263]
[1719906243306,3.40730043,3443.1,3442.7,0.066263]
[1719906243519,0.50294043,3443.0,3442.7,0.066263]
[1719906243900,3.40741043,3443.0,3442.4,0.827]
[1719906244101,2.2564,3442.9,3442.2,2.9051]
[1719906244299,2.75940209,3442.9,3442.5,0.066263]
[1719906244498,0.50300209,3442.8,3442.3,3.73203]
[1719906244719,0.50300209,3442.7,3442.6,0.06622267]
[1719906244925,0.50300209,3442.7,3442.3,3.73203]
[1719906245130,2.2564,3442.9,3442.6,0.06622267]
[1719906245430,0.50299439,3442.8,3442.3,3.73203]
[1719906245615,0.50299439,3442.8,3442.3,0.827]
[1719906245815,0.50299439,3442.7,3442.3,0.827]
[1719906246122,0.50299439,3442.6,3442.3,0.827]
[1719906246312,0.50299439,3442.8,3442.3,0.827]
[1719906247399,2.90469,3442.8,3442.3,0.827]
[1719906247595,0.50299554,3442.7,3442.3,0.827]
[1719906247829,0.50299554,3442.6,3442.3,0.827]
[1719906248034,0.50299759,3442.5,3442.3,0.827]
[1719906248228,0.50299759,3442.4,3442.3,0.827]
[1719906248709,0.50299759,3442.6,3442.3,0.827]
[1719906249696,0.47299759,3442.6,3442.3,0.827]
[1719906250628,2.90471,3442.7,3442.3,0.827]
[1719906251132,2.90487,3442.5,3441.8,2.90541]
[1719906251319,2.90487,3442.5,3442.2,0.827]
[1719906254949,2.2829,3442.2,3441.0,2.4956]
[1719906255158,5.28996,3441.5,3440.7,2.3975]
[1719906255299,2.90597,3441.2,3440.7,2.3975]
[1719906255728,2.90597,3441.2,3440.6,0.827]
[1719906255936,2.90595,3441.3,3440.6,0.827]
[1719906255937,2.90607,3441.1,3440.6,0.827]
[1719906257267,2.90607,3441.1,3440.7,0.05531425]
[1719906258106,2.90614,3441.0,3440.5,0.827]
[1719906258306,2.90614,3441.0,3440.6,0.66070125]
[1719906258702,2.90607,3441.1,3440.6,0.66070125]
[1719906263647,3.73323,3440.9,3440.6,0.05531425]
[1719906263950,2.90638,3440.7,3440.6,0.05531425]
[1719906264146,3.40969248,3440.7,3439.9,0.827]
[1719906264317,2.90638,3440.7,3440.0,0.66596169]
[1719906265148,2.90663,3440.5,3440.0,0.66596169]
[1719906265314,2.90663,3440.5,3440.0,0.05567969]
[1719906265668,2.90663,3440.5,3439.8,0.827]
[1719906266186,2.90663,3440.5,3438.5,3.06407959]
[1719906266187,2.90697,3440.0,3439.9,0.05401302]
[1719906266462,3.73397,3440.1,3439.0,0.827]
[1719906266463,2.90732,3439.6,3439.0,0.827]
[1719906266810,2.90732,3439.6,3439.5,0.05304592]
[1719906270438,5.2553,3440.4,3439.5,0.05304592]
[1719906270439,0.827,3440.1,3439.5,0.05304592]
[1719906270746,2.90707,3439.9,3439.5,1.17617951]
[1719906271255,2.90707,3439.9,3439.5,0.88004592]
[1719906272448,2.90707,3439.9,3439.5,0.05304592]
[1719906272957,2.90707,3439.9,3439.3,0.827]
[1719906273148,2.90707,3439.9,3439.4,0.05326912]
[1719906274150,2.90711,3439.9,3439.4,0.05326912]
[1719906274375,2.90711,3439.9,3439.2,0.8278]
[1719906274655,2.90711,3439.9,3439.3,0.42682212]
[1719906275469,2.90714,3439.8,3439.3,0.42682212]
[1719906277730,2.9073,3439.7,3439.3,0.42682212]
[1719906278057,2.9073,3439.7,3439.2,0.8278]
[1719906278498,2.90732,3439.6,3439.3,0.05341479]
[1719906284660,2.90714,3439.8,3439.3,0.05341479]
[1719906284860,2.90706,3439.9,3439.4,0.827]
[1719906285258,2.90706,3439.9,3439.5,0.05341479]
[1719906291909,10.2861161,3440.1,3439.5,0.65785027]
[1719906292099,0.50339104,3440.0,3439.5,0.65785027]
[1719906292400,7.3791761,3440.1,3439.9,0.827]
[1719906292605,2.9066,3440.5,3439.9,0.827]
[1719906292901,0.50333833,3440.4,3439.9,0.827]
[1719906293091,0.50333833,3440.3,3439.9,0.827]
[1719906293297,2.90655,3440.5,3440.0,0.05338379]
[1719906293507,0.50334373,3440.4,3440.0,0.05338379]
[1719906293811,0.50334373,3440.3,3440.0,0.05338379]
[1719906293975,0.50334373,3440.2,3440.0,0.43214317]
[1719906294179,7.3791761,3440.6,3440.1,3.73389]
[1719906294440,0.50328759,3440.5,3440.3,0.827]
[1719906294576,7.3791761,3440.6,3440.3,0.827]
[1719906294777,0.50328963,3440.5,3440.3,0.827]
[1719906294976,7.3791761,3440.6,3440.4,0.05317919]
[1719906295178,0.50328941,3440.5,3440.4,0.05317919]
[1719906295406,0.50328941,3440.5,3440.1,3.73389]
[1719906295588,7.3791761,3440.6,3440.1,4.633778]
[1719906295788,0.50328747,3440.5,3440.2,0.05317919]
[1719906296012,2.9063,3440.8,3440.1,4.633778]
[1719906296211,0.50328742,3440.7,3440.2,0.9898768]
[1719906296384,2.9063,3440.8,3440.2,1.04305599]
[1719906296709,0.50327691,3440.7,3440.2,1.04305599]
[1719906296910,2.9063,3440.8,3440.3,2.3602]
[1719906297117,0.50329233,3440.6,3440.5,0.827]
[1719906297322,7.3791761,3441.0,3440.3,6.0939]
[1719906297488,7.3791761,3441.0,3440.1,2.90689]
[1719906297489,0.50326806,3440.9,3440.5,0.05317919]
[1719906297685,0.50326806,3440.8,3440.1,3.73389]
[1719906297885,0.50326806,3440.8,3440.6,0.05317919]
[1719906298184,0.50326806,3440.8,3440.1,3.73389]
[1719906298386,0.50326806,3440.8,3440.7,0.05317919]
[1719906298801,0.50326806,3440.8,3440.1,3.73389]
[1719906299001,0.50326806,3440.8,3440.1,4.634003]
[1719906299300,0.50326806,3440.8,3440.2,0.05317919]
[1719906299688,0.50328608,3440.7,3440.2,0.05317919]
[1719906299892,2.90627,3440.9,3440.2,0.05317919]
[1719906300198,0.50327593,3440.8,3440.2,0.05317919]
[1719906300404,2.90627,3440.9,3440.2,2.95997919]
[1719906300592,0.50327727,3440.8,3440.2,2.95997919]
[1719906300787,2.90627,3440.9,3440.2,2.95997919]
[1719906301129,3.40957872,3440.8,3440.2,2.95997919]
[1719906301326,3.40957872,3440.8,3440.2,0.05317919]
[1719906301521,0.50329036,3440.7,3440.2,0.05317919]
[1719906301697,2.9063,3440.8,3440.1,2.90688]
[1719906301903,0.50328322,3440.7,3440.3,0.05317919]
[1719906302106,0.50328322,3440.7,3440.2,0.827]
[1719906302303,2.9063,3440.8,3440.4,0.05317919]
[1719906302627,0.50328262,3440.7,3440.5,0.05294675]
[1719906302828,2.9063,3440.8,3440.5,0.05294675]
[1719906303133,2.3923,3441.1,3438.8,2.334]
[1719906303134,3.3188,3440.6,3438.8,2.334]
[1719906303304,0.71325866,3440.5,3438.9,0.05814856]
[1719906303492,3.4099231,3440.4,3439.7,0.827]
[1719906303691,3.4100731,3440.3,3439.7,0.827]
[1719906303939,0.5032831,3440.2,3439.7,0.827]
[1719906304837,3.4101131,3440.2,3439.7,0.827]
[1719906305040,0.5032831,3440.1,3439.7,0.827]
[1719906305644,2.90683,3440.2,3439.7,0.827]
[1719906305827,0.50338603,3440.1,3439.7,0.827]
[1719906306013,0.50338603,3440.0,3439.7,0.827]
[1719906306222,0.50338603,3440.1,3439.7,0.827]
[1719906306434,0.50338689,3440.0,3439.7,0.827]
[1719906306637,2.90683,3440.2,3439.7,0.827]
[1719906306802,0.5033849,3440.1,3439.7,0.827]
[1719906307137,0.5033849,3440.0,3439.7,0.827]
[1719906307338,0.5033849,3440.1,3439.7,0.827]
[1719906308812,2.90683,3440.2,3439.7,0.827]
[1719906309037,0.50339183,3440.1,3439.7,0.827]
[1719906309246,2.90633,3440.8,3440.0,0.827]
[1719906309453,7.3791761,3440.9,3440.4,0.827]
[1719906309454,3.40969245,3440.7,3440.4,0.827]
[1719906309735,0.50330245,3440.6,3440.5,0.04593234]
[1719906310309,0.50330245,3440.6,3440.2,0.827]
[1719906310529,0.50330245,3440.6,3440.5,0.04593234]
[1719906311238,2.90639,3440.7,3440.5,0.04593234]
[1719906311433,0.50331262,3440.6,3440.2,0.827]
[1719906311652,2.90639,3440.7,3440.2,0.827]
[1719906311653,0.50331262,3440.5,3440.2,0.827]
[1719906311936,0.50331262,3440.4,3440.2,0.827]
[1719906312138,2.90639,3440.7,3440.2,0.827]
[1719906312318,0.50331106,3440.6,3440.2,0.827]
[1719906312514,2.90639,3440.7,3440.2,0.827]
[1719906312515,0.50331106,3440.5,3440.2,0.827]
[1719906312715,0.50331106,3440.6,3440.2,0.827]
[1719906312915,0.50331106,3440.5,3440.2,0.827]
[1719906313235,0.50331106,3440.4,3440.2,0.827]
[1719906313433,0.50331106,3440.6,3440.2,0.827]
[1719906313642,0.50331286,3440.5,3440.2,0.827]
[1719906313817,0.50331286,3440.4,3440.2,0.827]
[1719906314013,0.50331286,3440.6,3440.2,0.827]
[1719906315138,3.40978286,3440.6,3440.2,0.827]
[1719906315344,2.90647,3440.6,3440.2,0.827]
[1719906315651,0.50330408,3440.5,3440.2,0.827]
[1719906315816,0.50330408,3440.4,3440.2,0.827]
[1719906316015,2.90647,3440.6,3440.2,0.827]
[1719906316227,0.50330276,3440.5,3440.2,0.827]
[1719906316415,0.50330276,3440.4,3440.2,0.827]
[1719906316733,2.90606,3441.1,3440.3,0.05813245]
[1719906316965,0.50327635,3441.0,3440.8,0.827]
[1719906317259,0.50327635,3440.9,3440.8,0.827]
[1719906317664,0.50327635,3440.9,3440.8,0.87198804]
[1719906317868,0.50327635,3440.9,3440.8,0.04498804]
[1719906318155,0.50327635,3440.9,3440.3,5.31435245]
[1719906318329,2.90624,3440.9,3440.8,0.04498804]
[1719906318511,2.90641,3440.7,3440.3,0.827]
[1719906318846,0.50328236,3440.6,3440.3,0.827]
[1719906319147,2.90641,3440.7,3440.4,0.04498804]
[1719906319368,0.50328825,3440.6,3440.4,0.04498804]
[1719906319569,0.50328825,3440.5,3440.4,0.04498804]
[1719906320638,2.90641,3440.7,3440.4,0.04498804]
[1719906320836,0.50328118,3440.6,3440.3,0.827]
[1719906321047,0.50328118,3440.6,3440.4,0.04498804]
[1719906321920,2.90641,3440.7,3440.4,0.04498804]
[1719906322117,0.50327671,3440.5,3440.3,0.827]
[1719906322319,2.90641,3440.7,3440.5,0.04498804]
[1719906322515,2.90641,3440.7,3440.3,0.827]
[1719906322516,0.50328253,3440.6,3440.3,0.827]
[1719906322823,0.50328253,3440.5,3440.3,0.827]
[1719906323057,2.90641,3440.7,3440.3,0.827]
[1719906323359,0.50328256,3440.6,3440.3,0.827]
[1719906323527,0.50328256,3440.5,3440.3,0.827]
[1719906323728,0.50328256,3440.6,3440.3,0.827]
[1719906323934,0.50328256,3440.5,3440.3,0.827]
[1719906324129,0.50328256,3440.4,3440.3,0.827]
[1719906324335,0.50328256,3440.5,3440.3,0.827]
[1719906325156,2.90647,3440.6,3440.3,0.827]
[1719906325455,0.50329175,3440.5,3440.3,0.827]
[1719906325658,0.50329175,3440.4,3440.3,0.827]
[1719906326535,2.90641,3440.7,3440.3,0.827]
[1719906326738,0.50328813,3440.6,3440.3,0.827]
[1719906327063,0.50328813,3440.5,3440.3,0.827]
[1719906327358,2.90641,3440.7,3440.3,0.827]
[1719906327555,0.50328759,3440.6,3440.3,0.827]
[1719906327859,0.50328759,3440.5,3440.3,0.827]
[1719906328024,0.50328759,3440.6,3440.3,0.827]
[1719906328458,2.90641,3440.7,3440.3,0.827]
[1719906328680,0.50328423,3440.5,3440.3,0.827]
[1719906328840,2.90641,3440.7,3440.3,0.827]
[1719906329025,0.50328385,3440.6,3440.3,0.827]
[1719906329351,0.50328385,3440.5,3440.3,0.827]
[1719906329654,0.50328385,3440.4,3440.3,0.827]
[1719906329862,0.50328385,3440.6,3440.3,0.827]
[1719906331825,0.5032857,3440.5,3440.3,0.827]
[1719906332071,2.90641,3440.7,3440.3,0.827]
[1719906332245,0.5032865,3440.6,3440.3,0.827]
[1719906333427,0.5032865,3440.6,3440.1,2.90688]
[1719906333632,0.5032865,3440.6,3440.5,0.827]
[1719906334056,0.5032865,3440.6,3440.5,0.87180856]
[1719906335161,0.50328153,3440.6,3440.5,0.87180856]
[1719906337026,7.3791761,3441.1,3440.5,3.36450856]
[1719906337227,0.50320798,3441.0,3440.7,2.90637]
[1719906337459,7.3791761,3441.1,3440.9,0.827]
[1719906337628,0.50320124,3441.0,3440.9,0.827]
[1719906338047,0.50320124,3441.0,3440.9,0.87176837]
[1719906338290,0.5032007,3441.0,3440.9,0.87176837]
[1719906338452,0.50320059,3441.0,3440.9,0.87176837]
[1719906341460,5.24479,3441.4,3440.9,0.87176837]
[1719906341663,0.50320062,3441.0,3440.9,0.87176837]
[1719906341830,0.50320062,3441.0,3440.9,0.827]
[1719906342035,0.50320062,3441.0,3440.9,0.87176837]
[1719906344967,7.3791761,3441.6,3440.9,0.87176837]
[1719906345163,0.50316157,3441.5,3441.1,0.827]
[1719906345368,0.50316157,3441.5,3440.8,0.05812006]
[1719906345369,0.50316157,3441.4,3441.3,0.827]
[1719906345581,7.3791761,3441.6,3441.3,0.827]
[1719906345582,0.50316157,3441.5,3441.3,0.827]
[1719906345899,0.50316157,3441.4,3441.3,0.827]
[1719906347144,0.50316157,3441.4,3441.3,0.87176837]
[1719906348080,7.3791761,3441.6,3441.3,0.87176837]
[1719906348296,2.2539,3441.9,3441.5,0.827]
[1719906348493,0.50312347,3441.8,3441.5,0.827]
[1719906348789,0.50312188,3441.7,3441.6,0.0441931]
[1719906351465,0.50311806,3441.7,3441.6,0.0441931]
[1719906352900,2.90527,3442.1,3441.6,0.0441931]
[1719906353074,0.50310974,3442.0,3441.7,0.827]
[1719906353403,3.40844974,3442.0,3441.8,0.04412508]
[1719906353583,0.50310974,3441.9,3441.8,0.04412508]
[1719906353769,0.50310974,3441.9,3441.4,0.827]
[1719906354409,0.50310974,3441.9,3441.6,0.827]
[1719906354761,2.90534,3442.0,3441.6,0.827]
[1719906354762,0.50312298,3441.8,3441.6,0.827]
[1719906355106,2.90534,3442.0,3441.7,0.04412508]
[1719906355305,0.50312308,3441.9,3441.7,0.04412508]
[1719906355513,2.90534,3442.0,3441.7,0.04412508]
[1719906355514,0.50312308,3441.8,3441.7,0.04412508]
[1719906355665,0.50312308,3441.9,3441.7,0.04412508]
[1719906358007,2.90539,3441.9,3441.7,0.04412508]
[1719906358208,3.40858206,3441.8,3441.7,0.04412508]
[1719906358572,3.40858206,3441.8,3441.4,0.827]
[1719906358805,2.90545,3441.8,3441.7,0.04412508]
[1719906359069,5.80157922,3441.8,3441.7,0.04412508]
[1719906359285,5.80157922,3441.8,3441.4,0.827]
[1719906359485,3.40866922,3441.7,3441.4,0.827]
[1719906359687,3.40866922,3441.7,3440.9,2.90621]
[1719906359688,3.40866922,3441.7,3441.5,0.04412508]
[1719906359972,0.50312922,3441.6,3441.0,0.827]
[1719906360184,0.50312922,3441.6,3441.0,1.736275]
[1719906360499,0.50312922,3441.6,3441.1,0.0441189]
[1719906360803,2.90554,3441.7,3441.2,0.827]
[1719906360967,0.50317521,3441.6,3441.2,0.827]
[1719906361172,0.50317521,3441.5,3441.2,0.827]
[1719906361406,2.90562,3441.6,3441.3,0.0441189]
[1719906361705,3.40894518,3441.5,3441.3,0.0441189]
[1719906361903,0.50317518,3441.4,3441.3,0.0441189]
[1719906362107,0.50317518,3441.4,3441.1,0.827]
[1719906362292,0.50317518,3441.4,3441.2,0.0441189]
[1719906362801,2.90587,3441.3,3441.2,0.0441189]
[1719906362978,8.59451518,3441.3,3441.2,0.0441189]
[1719906363183,2.90625,3440.9,3440.1,5.31956]
[1719906363513,0.50325153,3440.8,3440.5,0.827]
[1719906363808,2.90625,3440.9,3440.7,0.827]
[1719906364370,2.90625,3440.9,3440.8,0.04278222]
[1719906364606,3.40946595,3440.9,3440.8,0.04278222]
[1719906364804,3.40946595,3440.9,3440.7,0.827]
[1719906365103,2.90625,3440.9,3440.8,0.04278222]
[1719906365413,3.40948428,3440.9,3440.7,0.827]
[1719906365569,3.40948428,3440.9,3440.8,0.04278222]
[1719906365775,3.40947955,3440.9,3440.8,0.04278222]
[1719906366109,0.50322955,3440.9,3440.8,0.04278222]
[1719906366268,0.50322955,3440.9,3440.7,0.827]
[1719906366473,2.90597,3441.2,3440.8,0.04278222]
[1719906366792,0.50320631,3441.1,3440.9,0.827]
[1719906366993,0.50320821,3441.0,3440.9,0.86978222]
[1719906370214,2.2796,3441.3,3440.9,0.86978222]
[1719906370375,0.50319332,3441.2,3441.1,0.827]
[1719906371106,0.50319332,3441.2,3441.1,0.86978222]
[1719906371309,7.3791761,3441.4,3441.1,0.86978222]
[1719906371609,0.50317696,3441.3,3441.1,0.86978222]
[1719906371809,7.3791761,3441.4,3441.1,0.04278222]
[1719906371810,2.75427696,3441.2,3441.1,0.04278222]
[1719906372113,2.75427696,3441.2,3440.9,0.827]
[1719906372308,0.50317696,3441.1,3441.0,0.04278222]
[1719906372607,0.47317696,3441.1,3441.0,0.04278222]
[1719906373609,2.2511,3441.2,3441.0,0.04278222]
[1719906375505,10.2850361,3441.4,3441.1,0.827]
[1719906375705,10.2850361,3441.4,3441.2,0.04135615]
[1719906376213,2.90587,3441.3,3441.2,0.04135615]
[1719906379911,2.90587,3441.3,3441.1,0.827]
[1719906380109,2.90587,3441.3,3441.2,0.0414808]
[1719906380291,2.90587,3441.3,3441.1,0.827]
[1719906380490,2.90567,3441.6,3441.2,0.0414808]
[1719906380828,2.4633,3441.9,3441.3,0.827]
[1719906380829,2.90558,3441.7,3441.3,0.827]
[1719906381126,2.4633,3441.9,3441.0,2.2892]
[1719906381127,3.11595132,3441.6,3441.4,0.86845918]
[1719906381287,0.21027132,3441.5,3441.4,0.04145918]
[1719906381489,0.21027132,3441.5,3441.2,0.827]
[1719906381738,2.90568,3441.6,3441.3,0.04145918]
[1719906381885,0.21026879,3441.5,3441.3,0.04145918]
[1719906382095,2.90568,3441.6,3441.3,0.04145918]
[1719906382431,0.21026906,3441.5,3441.3,0.04145918]
[1719906382601,0.50315434,3441.4,3441.3,0.04145918]
[1719906383328,2.4633,3441.9,3441.3,0.04145918]
[1719906383531,1.31534978,3441.8,3441.6,0.827]
[1719906383702,0.71341345,3441.7,3441.6,0.827]
[1719906383893,0.71341345,3441.7,3441.6,0.04141595]
[1719906384415,0.71341345,3441.7,3441.4,0.827]
[1719906384626,2.4633,3441.9,3441.6,0.04141595]
[1719906384819,1.81842514,3441.8,3441.4,0.827]
[1719906385022,0.71339846,3441.7,3441.4,0.827]
[1719906385192,0.713403,3441.6,3441.4,0.827]
[1719906385393,0.50313056,3441.5,3441.4,0.827]
[1719906385593,0.50313056,3441.8,3441.4,0.827]
[1719906385842,0.21026911,3441.7,3441.4,0.827]
[1719906386039,0.50313056,3441.6,3441.4,0.827]
[1719906386337,0.50313056,3441.5,3441.4,0.827]
[1719906386634,2.4633,3441.9,3441.4,0.827]
[1719906386845,0.713389,3441.8,3441.4,0.827]
[1719906386988,0.713389,3441.7,3441.4,0.827]